[Event "34th Pula Open 2022"]
[Site "Pula"]
[Date "2022.06.18"]
[Round "1.11"]
[White "Racnik, Tone"]
[Black "Cupic, Lovro"]
[Result "0-1"]
[ECO "B12"]
[WhiteElo "1920"]
[BlackElo "2271"]
[Annotator "TA"]
[PlyCount "92"]
[EventDate "2022.06.18"]
[EventType "swiss"]
[EventCountry "CRO"]
[SourceTitle "playchess.com"]
[Source "ChessBase"]
[SourceQuality "1"]
[TimeControl "5400+30"]

{[%evp 11,92,-33,-1,-10,-8,-10,-10,-10,-10,-12,0,-8,-7,-2,-11,-13,-12,-12,8,-12,-10,-27,-26,-26,-37,-66,-59,-77,-51,-66,-65,-70,-44,-40,-31,-33,-22,-89,-34,-39,-56,-66,-6,-12,0,0,0,0,0,0,0,0,0,-145,-133,-164,-161,-179,-154,-391,-389,-737,-474,-646,-610,-1311,-1283,-1242,-1124,-29975,-29976,-29975,-29977,-29977,-29978,-29978,-29979,-29979,-29980,-29980,-29981,-29979,-29980]} 1. e4 {[%emt 0:00:12]} c6 {[%emt 0:02:10]} 2. d4 {[%emt 0:03:06]} d5 {[%emt 0:00:14]} 3. e5 {[%emt 0:00:34]} Bf5 {[%emt 0:00:07]} 4. Ne2 {[%emt 0:01:04]} e6 {[%emt 0:00:39]} 5. Ng3 {[%emt 0:00:32]} Bg6 {[%emt 0:00:08]} 6. h4 {[%emt 0:01:33]} h6 {[%emt 0:00:15]} 7. Bd3 {[%emt 0:00:35] B12: Caro-Kann: Advance Variation.} Bxd3 {[%emt 0:00:23]} 8. Qxd3 {[%emt 0:00:08]} c5 {[%emt 0:00:53]} 9. c3 {[%emt 0:00:24] The position is equal.} Nc6 {[%emt 0:00:24]} 10. a3 {[%emt 0:00:47]} cxd4 {[%emt 0:04:13]} 11. cxd4 {[%emt 0:00:13]} Qb6 {[%emt 0:00:10]} 12. Ne2 {[%emt 0:01:52]} Nge7 $36 {[%emt 0:00:29][%mdl 2048] Black is pushing.} 13. Nd2 {[%emt 0:04:35]} Nf5 {[%emt 0:02:05][%cal Rf5d4]} 14. Nf3 {[%emt 0:03:50] [#]} Na5 $146 {[%emt 0:00:51]} ({Predecessor:} 14... h5 15. Rb1 Be7 16. Bg5 Bxg5 17. hxg5 g6 18. O-O O-O 19. Rfc1 Rfc8 20. b4 Nce7 {0-1 (43) Sarkar,J (2338)-Lamard,G (2480) Chess.com INT 2021}) 15. g4 {[%emt 0:07:21]} Ne7 {[%emt 0:00:50]} 16. Nd2 {[%emt 0:13:32]} h5 {[%emt 0:08:33]} 17. b4 {[%emt 0:02:18]} Nc4 {[%emt 0:00:33]} 18. g5 {[%emt 0:09:06]} Rc8 {[%emt 0:00:47]} 19. Rb1 {[%emt 0:02:08]} Nf5 {[%emt 0:01:52]} 20. Nf3 {[%emt 0:04:05][%cal Og5g6,Bd2f3,Bf3g1,Bg1e2,Be2c3][%mdl 32]} g6 {[%emt 0:01:51] Black is much more active. The white rooks are badly placed.} 21. Ng3 {[%emt 0:01:34]} Nxg3 {[%emt 0:04:43]} 22. fxg3 {[%emt 0:00:06]} Bg7 {[%emt 0:00:18]} 23. Ng1 {[%emt 0:05:31]} Qb5 {[%emt 0:11:05]} 24. Qb3 {[%emt 0:03:19] [#]} (24. Rb3 $11) 24... Nb6 {[%emt 0:03:46]} ({Black should try} 24... Na5 $1 $17 25. Qd1 Rc4) 25. Ne2 $15 {[%emt 0:08:50]} Rc7 {[%emt 0:07:17]} 26. Rh2 {[%emt 0:00:28][%cal Bh1h2,Bh2f2,Bf2f3][%mdl 32]} Kd7 {[%emt 0:07:50]} (26... O-O $15) 27. Rf2 {[%emt 0:00:51]} Kc8 {[%emt 0:00:12]} 28. Rf3 {[%emt 0:08:03]} Kb8 {[%emt 0:04:18]} 29. Nc3 {[%emt 0:05:03]} Qd7 {[%emt 0:00:12]} 30. Bd2 {[%emt 0:00:38]} Rhc8 {[%emt 0:01:45]} 31. a4 {[%emt 0:01:11]} Bf8 {[%emt 0:03:04]} 32. b5 {[%emt 0:02:41] [#]} (32. Kf1 $11) 32... Rc4 $1 $17 {[%emt 0:01:07]} 33. a5 {[%emt 0:02:38]} Rb4 {[%emt 0:00:23]} 34. Qa2 {[%emt 0:00:53]} Nc4 {[%emt 0:02:52]} 35. Rxb4 $2 {[%emt 0:04:35] This costs White the game.} (35. Bf4 $17 {was necessary.}) 35... Bxb4 $19 {[%emt 0:00:05]} 36. b6 $2 {[%emt 0:00:28]} (36. Bf4 Nxa5 37. Qb2) 36... Qc6 {[%emt 0:03:33]} 37. bxa7+ {[%emt 0:00:35]} Ka8 {[%emt 0:07:05]} 38. Qb3 {[%emt 0:00:10]} Nxd2 {[%emt 0:00:22]} 39. Kxd2 {[%emt 0:00:06]} Bxa5 {[%emt 0:00:39]} 40. Kc2 {[%emt 0:00:21]} Bxc3 {[%emt 0:00:26] Black mates.} 41. Rxc3 {[%emt 0:00:07]} Qxc3+ {[%emt 0:00:15]} 42. Qxc3 {[%emt 0:00:06]} Rxc3+ {[%emt 0:00:03]} 43. Kxc3 {[%emt 0:00:05]} Kxa7 {[%emt 0:00:05] KP-KP} 44. Kb4 {[%emt 0:01:01]} Kb6 {[%emt 0:01:16]} 45. Ka4 {[%emt 0:00:09]} Ka6 {[%emt 0:00:05]} 46. Kb4 {[%emt 0:00:17]} b6 {[%emt 0:00:18] Weighted Error Value: White=0.61/Black=0.12 (very precise)} 0-1

[Event "34th Pula Open 2022"]
[Site "Pula"]
[Date "2022.06.18"]
[Round "1.12"]
[White "Novosel, Lovro"]
[Black "Paluska, Karol"]
[Result "1-0"]
[ECO "B06"]
[WhiteElo "2279"]
[BlackElo "2006"]
[Annotator "TA"]
[PlyCount "67"]
[EventDate "2022.06.18"]
[EventType "swiss"]
[EventCountry "CRO"]
[SourceTitle "playchess.com"]
[Source "ChessBase"]
[SourceQuality "1"]
[TimeControl "5400+30"]

{[%evp 9,67,33,33,35,52,21,35,39,55,49,62,33,89,94,95,70,66,75,105,77,79,59,89,90,89,91,85,81,79,78,82,38,64,34,34,47,65,65,68,69,86,80,72,71,112,114,122,147,121,143,127,96,1060,1060,1004,1004,29990,29991,29991,29992]} 1. Nf3 {[%emt 0:00:07]} g6 {[%emt 0:00:56]} 2. d4 {[%emt 0:01:16]} Bg7 {[%emt 0:00:46]} 3. e4 {[%emt 0:01:05]} d6 {[%emt 0:01:25]} 4. Nc3 {[%emt 0:00:40]} Bg4 {[%emt 0:02:31]} 5. Bc4 {[%emt 0:03:40]} e6 {[%emt 0:04:00]} 6. Be3 {[%emt 0:03:28] B06: Modern Defence.} Ne7 {[%emt 0:03:22]} 7. Qd2 {[%emt 0:03:41]} d5 {[%emt 0:16:26] Threatens to win with ...Bxf3.} 8. Be2 {[%emt 0:13:06] [#] White is slightly better.} O-O $146 {[%emt 0:15:04][%cal Oc7c5]} ({Predecessor:} 8... Nd7 9. Bh6 Bxh6 10. Qxh6 dxe4 11. Nxe4 Nf5 12. Qd2 Nf6 13. Nc5 b6 14. Nb3 O-O {0-1 (37) Todorov,M (2198)-Vozovic,O (2356) Istanbul 2006}) 9. O-O-O {[%emt 0:09:16]} Nd7 {[%emt 0:04:47]} 10. Bh6 {[%emt 0:11:24]} c6 {[%emt 0:07:13] [#]} (10... Nf6 $14) 11. h4 $1 $16 {[%emt 0:06:35][%cal Oh4h5]} dxe4 {[%emt 0:01:44]} 12. Bxg7 {[%emt 0:01:35]} (12. Nxe4 Bxh6 13. Qxh6 Nf5 $11) 12... Kxg7 {[%emt 0:00:21]} 13. Nxe4 {[%emt 0:00:14][%cal Oh4h5] Hoping for h5!} Nf5 {[%emt 0:05:52]} 14. Ng1 {[%emt 0:06:17]} (14. h5 {keeps more tension.} Nf6 15. Nfg5 Bxe2 16. Qxe2 Nxe4 17. Nxe4 Nd6 18. Nc5) 14... Bxe2 {[%emt 0:00:50]} 15. Nxe2 {[%emt 0:00:06] aiming for g4.} Nf6 {[%emt 0:01:35]} 16. Nxf6 {[%emt 0:08:54]} Qxf6 {[%emt 0:00:41]} 17. h5 {[%emt 0:00:23]} g5 {[%emt 0:05:04]} 18. g4 {[%emt 0:09:21]} Nd6 {[%emt 0:04:02]} 19. h6+ {[%emt 0:00:27]} Kh8 {[%emt 0:00:48]} 20. f4 {[%emt 0:01:03]} gxf4 {[%emt 0:01:51]} 21. Nxf4 {[%emt 0:01:52][%cal Be2f4,Bf4d3,Bd3e5][%mdl 32]} Rg8 {[%emt 0:02:57]} 22. Rhg1 {[%emt 0:02:42]} Qg5 {[%emt 0:03:21]} 23. Kb1 $1 {[%emt 0:00:21]} Rad8 {[%emt 0:00:08]} 24. Qf2 {[%emt 0:03:41]} Ne4 {[%emt 0:08:36]} (24... Qxh6 25. Rh1 Qg5 26. Rh5 (26. Qh2 Rg7 $11) 26... Qxg4 27. Rdh1 $18) 25. Qf3 {[%emt 0:01:59]} Nd6 {[%emt 0:02:44]} 26. Nd3 {[%emt 0:02:28]} Qxh6 {[%emt 0:03:37]} 27. Rh1 {[%emt 0:00:54]} Qg5 {[%emt 0:00:21]} 28. Rh5 {[%emt 0:00:20]} ({Inferior is} 28. Qh3 Rg7 $15) 28... Qe7 {[%emt 0:01:29]} 29. Rdh1 {[%emt 0:00:35][%csl Gh1][%cal Rh5h7] White is much more active.} Rg7 {[%emt 0:00:12]} 30. Ne5 $40 {[%emt 0:00:36][%mdl 128] White wants to mate with Qh3. White has strong attack.} f6 $2 {[%emt 0:01:14][%mdl 8192] [#] A mistake that costs the game.} (30... Kg8 $16) 31. Rxh7+ $3 $18 {[%emt 0:00:26][%mdl 576] Remove Defender, Deflection} Rxh7 {[%emt 0:00:24]} 32. Ng6+ {[%emt 0:00:04]} Kg8 {[%emt 0:00:11]} 33. Nxe7+ {[%emt 0:00:07]} Rxe7 {[%emt 0:00:06]} 34. Qxf6 {[%emt 0:00:06] Weighted Error Value: White=0.07 (flawless) /Black=0.39} 1-0

[Event "34th Pula Open 2022"]
[Site "Pula"]
[Date "2022.06.19"]
[Round "2.1"]
[White "Fercec, Nenad"]
[Black "Lavrencic, Matic"]
[Result "1-0"]
[ECO "B33"]
[WhiteElo "2415"]
[BlackElo "2130"]
[Annotator "TA"]
[PlyCount "65"]
[EventDate "2022.06.18"]
[EventType "swiss"]
[EventCountry "CRO"]
[SourceTitle "playchess.com"]
[Source "ChessBase"]
[SourceQuality "1"]
[TimeControl "5400+30"]

{[%evp 25,65,16,18,2,0,0,6,-2,-5,-12,0,0,-4,-17,-26,-24,-13,-23,-14,-27,-25,-25,-5,-12,0,0,7,-43,-42,-35,364,368,406,370,433,447,469,482,655,618,655,612]} 1. e4 {[%emt 0:00:07]} c5 {[%emt 0:00:08]} 2. Nf3 {[%emt 0:00:07][%cal Bg1f3,Bf3d4,Bd4b5,Bb5a3,Ba3c2][%mdl 32]} e6 {[%emt 0:00:07]} 3. d4 {[%emt 0:00:08]} cxd4 {[%emt 0:00:08]} 4. Nxd4 {[%emt 0:00:07]} Nf6 {[%emt 0:00:04]} 5. Nc3 {[%emt 0:00:09]} Nc6 {[%emt 0:00:04]} 6. Ndb5 {[%emt 0:00:09]} d6 {[%emt 0:00:07]} 7. Bf4 {[%emt 0:00:06]} e5 {[%emt 0:00:08]} 8. Bg5 {[%emt 0:00:04]} a6 {[%emt 0:00:04]} 9. Na3 {[%emt 0:00:16]} b5 {[%emt 0:00:17][%cal Bb7b5,Bb5b4][%mdl 32]} 10. Nd5 {[%emt 0:00:10]} Be7 {[%emt 0:00:07][%cal Bf8e7,Be7f6,Bf6g5,Bg5h6,Bh6g7][%mdl 32]} 11. Bxf6 {[%emt 0:00:07]} Bxf6 {[%emt 0:00:07]} 12. c4 {[%emt 0:00:07]} b4 {[%emt 0:00:07] 12...0-0 is more fashionable.} 13. Nc2 {[%emt 0:00:15]} a5 {[%emt 0:01:15]} 14. Bd3 {[%emt 0:01:06] B33: Sicilian: Pelikan and Sveshnikov Variations.} O-O {[%emt 0:04:44]} 15. O-O {[%emt 0:00:08]} Be6 {[%emt 0:01:36]} 16. b3 {[%emt 0:01:33] The position is equal.} Bg5 {[%emt 0:03:21]} 17. g3 {[%emt 0:02:38] [#]} Bh6 $146 {[%emt 0:07:50]} ({Predecessor:} 17... Nb8 18. f4 Bxd5 19. cxd5 Bf6 20. Rb1 Nd7 21. Qf3 Rc8 22. Bc4 Nb6 23. Qd3 Nxc4 24. bxc4 Qb6+ {½-½ (33) Flermoen,P (2169)-Demac,E (2246) Tromsoe 2011}) 18. Kh1 {[%emt 0:05:17]} g6 {[%emt 0:16:44]} 19. f4 {[%emt 0:00:44]} exf4 {[%emt 0:01:56]} 20. gxf4 {[%emt 0:00:23]} Qh4 {[%emt 0:04:34]} 21. Nce3 {[%emt 0:02:04]} (21. Qe1 $5 {[%cal Re1h4]} Qxe1 22. Raxe1 $11) 21... Bg7 {[%emt 0:05:13]} 22. Rc1 {[%emt 0:02:55]} Nd4 {[%emt 0:03:35]} 23. Bb1 {[%emt 0:11:08]} Bh3 {[%emt 0:08:18]} 24. Rg1 {[%emt 0:03:32]} Rae8 {[%emt 0:05:49]} 25. Rg3 {[%emt 0:01:24]} Bd7 {[%emt 0:01:54]} 26. c5 {[%emt 0:02:45]} (26. Qf1 $11) 26... dxc5 $15 {[%emt 0:02:32]} 27. Rxc5 {[%emt 0:01:31]} Bb5 $2 {[%emt 0:08:20][%mdl 8192] [#] A mistake that costs the game.} (27... Rc8 $15 {keeps the upper hand.} 28. Rxa5 Bb5) 28. e5 $1 $18 {[%emt 0:14:04]} Bxe5 {[%emt 0:04:35] And now ...Be2 would win.} 29. Ng2 {[%emt 0:04:12] Pair of Knights!} ({Weaker is} 29. fxe5 Be2 30. Nf6+ Qxf6 31. exf6 Bxd1 32. Nxd1 Re6 $18) ({Less strong is} 29. Rg4 Qf2 $18) 29... Qxg3 {[%emt 0:04:40]} 30. hxg3 {[%emt 0:00:19] White is clearly winning.} Bg7 {[%emt 0:00:27]} 31. Bd3 {[%emt 0:02:23]} Bxd3 {[%emt 0:01:20]} 32. Qxd3 {[%emt 0:00:09]} Ne2 {[%emt 0:01:01]} 33. Kh2 {[%emt 0:00:45] Weighted Error Value: White=0.07 (flawless) /Black=0.55} 1-0

[Event "34th Pula Open 2022"]
[Site "Pula"]
[Date "2022.06.19"]
[Round "2.2"]
[White "Kekic, Armin"]
[Black "Nikcevic, Nebojsa"]
[Result "1/2-1/2"]
[ECO "C95"]
[WhiteElo "2149"]
[BlackElo "2387"]
[Annotator "TA"]
[PlyCount "82"]
[EventDate "2022.06.18"]
[EventType "swiss"]
[EventCountry "CRO"]
[SourceTitle "playchess.com"]
[Source "ChessBase"]
[SourceQuality "1"]
[TimeControl "5400+30"]

{[%evp 21,82,17,16,18,28,24,29,22,23,14,33,24,34,27,25,35,54,39,49,31,39,33,53,46,60,-54,-56,-53,-47,-49,-78,-82,0,0,0,13,7,0,0,0,0,0,0,0,0,0,0,-9,-19,-7,0,0,0,0,0,0,0,0,0,0,0,0,0]} 1. e4 {[%emt 0:00:04]} e5 {[%emt 0:02:49]} 2. Nf3 {[%emt 0:00:10]} Nc6 {[%emt 0:00:05]} 3. Bb5 {[%emt 0:00:16]} a6 {[%emt 0:00:12]} 4. Ba4 {[%emt 0:00:08]} Nf6 {[%emt 0:00:15]} 5. O-O {[%emt 0:00:11]} Be7 {[%emt 0:00:09]} 6. Re1 {[%emt 0:00:08]} b5 {[%emt 0:02:03]} 7. Bb3 {[%emt 0:00:06]} d6 {[%emt 0:00:06]} 8. c3 {[%emt 0:00:18]} O-O {[%emt 0:00:09]} 9. h3 {[%emt 0:00:00]} Nb8 {[%emt 0:01:41]} 10. d4 {[%emt 0:00:11]} Nbd7 {[%emt 0:00:45]} 11. Nbd2 {[%cal Bb1d2,Bd2f1,Bf1g3][%mdl 32]} c5 {[%emt 0:03:23]} 12. Nf1 {C95: Closed Ruy Lopez: Breyer Variation with 10 d4.} Qc7 {[%emt 0:03:39]} 13. Ng3 {[%emt 0:03:53]} Re8 {[%emt 0:00:00]} 14. Be3 {[%emt 0:12:41] White has an edge.} Bf8 {[%emt 0:00:26]} 15. Bc2 {[%emt 0:02:42] [#]} Nb6 $146 {[%emt 0:05:45]} ({Predecessor:} 15... cxd4 16. cxd4 exd4 17. Nxd4 Bb7 18. Rc1 Rac8 19. Bf4 Qb8 20. Ngf5 Nc5 21. f3 Ne6 {0-1 (47) Mrudul,D (2256)-Tokhirjonova,G (2378) Chess.com INT 2020}) 16. Nd2 {[%emt 0:05:31]} a5 {[%emt 0:14:56]} 17. Rc1 {[%emt 0:03:42]} g6 {[%emt 0:09:27]} 18. f4 {[%emt 0:05:14]} exd4 {[%emt 0:03:52]} 19. cxd4 {[%emt 0:01:07]} Bb7 {[%emt 0:00:19]} 20. Bd3 {[%emt 0:12:23]} c4 {[%emt 0:03:50]} 21. b3 {[%emt 0:06:57][%cal Rb3c4]} Qd7 {[%emt 0:09:59]} 22. Bb1 {[%emt 0:05:06]} Bg7 {[%emt 0:02:26]} 23. d5 {[%emt 0:07:51] [#]} ({White should play} 23. bxc4 $14 Nxc4 24. Nxc4 bxc4 25. d5) 23... Nbxd5 $1 $15 {[%emt 0:11:30]} 24. exd5 {[%emt 0:01:41]} Nxd5 {[%emt 0:01:46]} 25. Ndf1 {[%emt 0:05:59]} Qc6 {[%emt 0:03:54]} 26. Qf3 {[%emt 0:10:27]} c3 {[%emt 0:12:01]} (26... Nxe3 $17 27. Qxc6 Bxc6 28. Nxe3 Bd4) 27. Be4 $11 {[%emt 0:09:12] The position is equal.} f5 $1 {[%emt 0:01:32]} 28. Bxd5+ {[%emt 0:00:29]} Qxd5 {[%emt 0:00:04]} 29. Qxd5+ {[%emt 0:00:07]} Bxd5 {[%emt 0:00:04]} 30. Red1 {[%emt 0:00:33]} Bf7 {[%emt 0:00:04] A strong pair of Bishops.} 31. Bd4 {[%emt 0:03:21] [#] And now Bxg7 would win.} b4 {[%emt 0:00:11]} 32. Bxg7 {[%emt 0:00:09]} Kxg7 {[%emt 0:00:03]} 33. Rxd6 {[%emt 0:01:14]} a4 {[%emt 0:00:22][%cal Of7b3] White must now prevent ...Bxb3!} 34. Rd4 {[%emt 0:02:06]} axb3 {[%emt 0:00:21]} 35. axb3 {[%emt 0:00:09]} Reb8 {[%emt 0:00:11]} 36. Ne2 {[%emt 0:01:44]} Ra2 {[%emt 0:04:42]} 37. Nxc3 {[%emt 0:01:01]} bxc3 {[%emt 0:00:04]} 38. Rxc3 {[%emt 0:00:03]} Bxb3 {[%emt 0:02:48]} 39. Rc7+ {[%emt 0:01:31]} Kh8 {[%emt 0:00:06]} 40. Rd2 {[%emt 0:00:49]} Rxd2 {[%emt 0:00:20]} 41. Nxd2 {[%emt 0:00:06]} Bd5 {[%emt 0:00:05] Weighted Error Value: White=0.11 (very precise) /Black=0.08 (flawless)} 1/2-1/2

[Event "34th Pula Open 2022"]
[Site "Pula"]
[Date "2022.06.19"]
[Round "2.3"]
[White "Popovic, Milan S"]
[Black "Voscilla, Adriano"]
[Result "1-0"]
[ECO "B01"]
[WhiteElo "2383"]
[BlackElo "2140"]
[Annotator "TA"]
[PlyCount "87"]
[EventDate "2022.06.18"]
[EventType "swiss"]
[EventCountry "CRO"]
[SourceTitle "playchess.com"]
[Source "ChessBase"]
[SourceQuality "1"]
[TimeControl "5400+30"]

{[%evp 10,87,34,38,42,30,32,34,35,34,39,38,47,36,45,44,61,58,55,58,71,43,59,49,56,72,64,60,55,84,91,95,200,190,189,200,288,281,829,355,363,354,357,360,441,430,485,453,497,495,632,618,677,635,630,625,887,854,897,868,821,713,927,940,892,864,1261,1250,1230,1156,1209,1148,1245,1087,1784,1753,5867,5751,5093,1263]} 1. e4 {[%emt 0:00:03]} d5 {[%emt 0:01:49]} 2. exd5 {[%emt 0:00:06]} Nf6 {[%emt 0:00:08]} 3. Bb5+ {[%emt 0:00:03]} Bd7 {[%emt 0:00:10]} 4. Be2 {[%emt 0:00:05]} Nxd5 {[%emt 0:01:02]} 5. d4 {[%emt 0:00:05]} Bf5 {[%emt 0:00:30]} 6. a3 {[%emt 0:00:21]} e6 {[%emt 0:00:33] B01: Scandinavian Defence.} 7. c4 $1 {[%emt 0:02:49] 7.c4 is better than 7.Nf3.} Nb6 {[%emt 0:00:09]} 8. Nc3 {[%emt 0:00:41]} Nc6 {[%emt 0:00:35] White is slightly better.} 9. Be3 {[%emt 0:00:21]} Be7 {[%emt 0:00:43]} 10. h3 {[%emt 0:00:57]} Bf6 {[%emt 0:10:29][%cal Rc6d4]} 11. Nf3 {[%emt 0:00:09]} h6 {[%emt 0:00:10]} 12. b4 {[%emt 0:05:13] [#]} Qd7 $146 {[%emt 0:11:53]} ({Predecessor:} 12... a6 13. Ra2 Qe7 14. Rd2 O-O 15. Qb3 Rfd8 16. O-O a5 17. b5 a4 18. Qa2 Na5 19. c5 Nb3 20. Rdd1 Nd5 21. Nxd5 exd5 {½-½ (21) Mrva,V (2177)-Jurcisin,I (2022) Slovakia 2014}) 13. Ra2 {[%emt 0:09:26]} Rd8 {[%emt 0:06:41][%cal Rc6d4]} 14. Rd2 {[%emt 0:01:34]} Qe7 {[%emt 0:16:45]} 15. Qb3 {[%emt 0:04:35]} (15. O-O $5 {[%cal Rc3b5]}) 15... O-O {[%emt 0:21:23]} 16. d5 {[%emt 0:28:58]} Bxc3 {[%emt 0:00:00]} 17. Qxc3 {[%emt 0:00:14]} exd5 {[%emt 0:00:00]} 18. Bc5 $36 {[%emt 0:01:01][%mdl 2048] White has the initiative.} Qe4 {[%emt 0:00:00] [#] And now ...Na4 would win.} 19. Bxf8 {[%emt 0:00:49]} Kxf8 {[%emt 0:00:00] White leaves nothing to chance now.} 20. cxd5 {[%emt 0:04:40] Dancing on a razor blade.} Rxd5 {[%emt 0:00:00]} (20... Nxd5 $16 {was worth a try.} 21. Qd3 Rd6) 21. O-O $18 {[%emt 0:01:46][%cal Bh1f1,Bf1e1,Be1e5][%mdl 32]} Rxd2 {[%emt 0:00:00]} 22. Qxd2 {[%emt 0:00:19] Strongly threatening b5.} Nd5 {[%emt 0:00:00]} (22... Qd5 $142 23. Qc1 Qd6) 23. Re1 {[%emt 0:01:52]} Nce7 $2 {[%emt 0:03:17] [#]} (23... Be6 24. Ba6 Qf4) 24. Ba6 $1 {[%emt 0:02:05][%mdl 512]} Qf4 {[%emt 0:05:27]} 25. Qxf4 {[%emt 0:00:16]} Nxf4 {[%emt 0:00:06] Pair of Knights!} 26. Bxb7 {[%emt 0:00:05]} g5 {[%emt 0:01:34]} 27. Nd4 {[%emt 0:00:07] White is clearly winning.} Bd7 {[%emt 0:00:12]} 28. Re5 {[%emt 0:01:25]} c6 {[%emt 0:11:33]} 29. Ra5 {[%emt 0:01:35]} Nd3 {[%emt 0:01:31]} 30. Rxa7 {[%emt 0:00:55]} f5 {[%emt 0:01:01]} 31. Ba6 {[%emt 0:00:17]} Ne5 {[%emt 0:00:10]} 32. Be2 {[%emt 0:02:30]} f4 {[%emt 0:02:57]} 33. Nf3 {[%emt 0:00:45]} N7g6 {[%emt 0:00:59]} 34. Nxe5 {[%emt 0:00:13]} Nxe5 {[%emt 0:00:08][%mdl 4096] Endgame KRB-KBN} 35. Ra5 {[%emt 0:00:17]} Nf7 {[%emt 0:00:19]} 36. Bg4 {[%emt 0:00:12]} Be8 {[%emt 0:01:04]} 37. Bh5 {[%emt 0:00:05]} Bd7 {[%emt 0:00:22]} 38. Bxf7 {[%emt 0:00:15]} Kxf7 {[%emt 0:00:06] KR-KB} 39. Re5 {[%emt 0:01:20]} Kf6 {[%emt 0:00:27]} 40. Re1 {[%emt 0:00:05]} h5 {[%emt 0:00:23]} 41. f3 {[%emt 0:00:03]} g4 {[%emt 0:00:32]} 42. hxg4 {[%emt 0:00:04]} hxg4 {[%emt 0:00:06]} 43. fxg4 {[%emt 0:00:02]} Bxg4 {[%emt 0:00:42]} 44. Kf2 {[%emt 0:00:06] Weighted Error Value: White=0.20 (precise) /Black=0.33} (44. a4 $142 Bf5 45. Rc1) 1-0